bitfinex/quotes_BTCUSD_20220115
["timestamp","ask_amount","ask_price","bid_price","bid_amount"]
[1642258182036,0.0426,43226.0,43215.0,1.0990336]
[1642258182237,0.115736,43225.0,43213.0,0.115725]
[1642258182435,0.49703478,43224.0,43209.0,3.29066768]
[1642258182638,0.1009183,43223.0,43209.0,3.63321557]
[1642258182836,0.057873,43217.0,43210.0,0.00010315]
[1642258183435,0.44044391,43215.0,43210.0,0.00010315]
[1642258183638,0.417596,43214.0,43207.0,0.00015472]
[1642258183836,0.0426,43214.0,43207.0,0.00015472]
[1642258184037,0.0426,43214.0,43203.0,0.55002702]
[1642258184038,0.85,43212.0,43203.0,0.55002702]
[1642258184242,0.0426,43211.0,43203.0,0.55002702]
[1642258184442,0.00124763,43206.0,43203.0,0.55002702]
[1642258184637,0.0426,43205.0,43203.0,0.55002702]
[1642258184941,0.09883742,43204.0,43203.0,0.55002702]
[1642258185138,0.90177687,43204.0,43203.0,0.55002702]
[1642258185340,0.14347803,43204.0,43203.0,0.55009578]
[1642258185538,0.24129606,43204.0,43203.0,0.55009578]
[1642258185986,0.24258925,43204.0,43203.0,0.55009578]
[1642258186191,0.83651962,43204.0,43203.0,6.876e-05]
[1642258186391,1.11911949,43204.0,43203.0,6.876e-05]
[1642258186587,1.11281956,43204.0,43197.0,0.0001719]
[1642258186788,0.374996,43203.0,43198.0,0.69444]
[1642258186991,0.0426,43202.0,43201.0,0.24893669]
[1642258187390,0.0426,43202.0,43201.0,0.24903983]
[1642258187791,0.417596,43202.0,43201.0,0.24903983]
[1642258188089,0.517596,43202.0,43201.0,0.00010314]
[1642258188488,1.168696,43202.0,43199.0,0.00013752]
[1642258188689,0.7937,43202.0,43200.0,0.69444]
[1642258188892,0.78267454,43201.0,43200.0,0.69444]
[1642258189091,0.78267454,43201.0,43200.0,0.64964]
[1642258189092,0.474996,43201.0,43200.0,0.64964]
[1642258189536,0.474996,43201.0,43200.0,0.64464]
[1642258189537,0.81482462,43201.0,43200.0,0.64464]
[1642258190133,0.81482462,43201.0,43200.0,0.49464]
[1642258190333,0.89027252,43201.0,43200.0,0.25216]
[1642258190533,1.16821099,43201.0,43200.0,0.25216]
[1642258190732,2.22766061,43201.0,43200.0,0.25216]
[1642258190935,2.22766061,43201.0,43200.0,0.24768486]
[1642258191135,2.22766061,43201.0,43192.0,0.0005336]
[1642258191136,2.35231514,43200.0,43192.0,0.0005336]
[1642258191333,3.50651672,43201.0,43192.0,0.0005336]
[1642258191334,0.00127174,43193.0,43192.0,0.0005336]
[1642258191534,1.26886774,43193.0,43192.0,0.0005336]
[1642258191734,0.41886774,43193.0,43192.0,0.0005336]
[1642258191933,0.84160207,43193.0,43192.0,0.0005336]
[1642258192146,0.84160207,43193.0,43192.0,0.0005336]
[1642258192335,1.69160207,43193.0,43192.0,0.0005336]
[1642258192534,2.14133205,43193.0,43192.0,0.0005336]
[1642258192734,3.37633205,43193.0,43192.0,0.0005336]
[1642258193197,2.1,43192.0,43177.0,0.44040818]
[1642258193392,0.374996,43188.0,43178.0,0.69469]
[1642258193590,0.00879987,43184.0,43178.0,0.69018851]
[1642258193892,0.0426,43183.0,43178.0,0.69018851]
[1642258194091,0.0426,43183.0,43178.0,0.64548851]
[1642258194292,0.00127248,43180.0,43178.0,0.64548851]
[1642258194592,0.0426,43179.0,43178.0,0.63779709]
[1642258194800,0.0426,43180.0,43178.0,0.63779709]
[1642258195193,0.0426,43180.0,43178.0,0.63229858]
[1642258195592,0.0426,43180.0,43179.0,0.29266572]
[1642258196093,0.0426,43180.0,43178.0,0.90307592]
[1642258196094,0.0426,43180.0,43178.0,0.63229858]
[1642258196948,0.00128107,43179.0,43178.0,0.63229858]
[1642258197452,0.0426,43180.0,43178.0,0.63229858]
[1642258197645,0.63707222,43180.0,43178.0,0.63229858]
[1642258197845,0.374996,43179.0,43178.0,0.63229858]
[1642258198045,0.47628044,43179.0,43178.0,0.63229858]
[1642258198245,0.47628044,43179.0,43178.0,0.94239279]
[1642258198445,0.1,43179.0,43178.0,0.63229858]
[1642258198646,0.1,43179.0,43178.0,0.57240472]
[1642258198844,0.05195785,43183.0,43178.0,0.57240472]
[1642258199045,0.52618923,43179.0,43178.0,0.52770472]
[1642258199247,0.52618923,43179.0,43178.0,1.02770472]
[1642258199445,0.52618923,43179.0,43178.0,0.52770472]
[1642258199446,1.17728923,43179.0,43178.0,0.52770472]
[1642258199843,1.55228523,43179.0,43178.0,0.52770472]
[1642258200048,1.72060369,43179.0,43178.0,0.52770472]
[1642258200693,2.14183005,43179.0,43178.0,0.52270472]
[1642258200895,2.19374201,43179.0,43178.0,0.52270472]
[1642258201091,2.29282662,43179.0,43178.0,0.52270472]
[1642258201491,1.8660883,43179.0,43178.0,0.52270472]
[1642258201891,1.172496,43179.0,43178.0,0.52270472]
[1642258202092,1.3693541,43179.0,43178.0,0.52270472]
[1642258202294,0.6934541,43179.0,43178.0,0.52270472]
[1642258202493,0.79182642,43182.0,43179.0,0.6]
[1642258202696,0.79182642,43182.0,43180.0,0.86676]
[1642258203093,0.99198642,43185.0,43180.0,0.86676]
[1642258203495,8.595e-05,43184.0,43180.0,0.86676]
[1642258203895,6.876e-05,43183.0,43180.0,0.86676]
[1642258204092,6.876e-05,43183.0,43180.0,0.82206]
[1642258204294,0.79182642,43187.0,43180.0,0.82206]
[1642258204748,0.00012033,43186.0,43180.0,0.82206]
[1642258204950,0.09973231,43185.0,43180.0,0.82206]
[1642258205151,0.09983545,43185.0,43184.0,0.24403378]
[1642258205357,0.79182642,43188.0,43177.0,0.20912697]
[1642258205552,0.69192642,43188.0,43178.0,1.51437202]
[1642258205752,0.69192642,43188.0,43178.0,1.51447516]
[1642258205952,0.69192642,43189.0,43178.0,1.60947516]
[1642258206251,0.69192642,43189.0,43182.0,0.27693186]
[1642258206450,0.69192642,43189.0,43183.0,0.69472]
[1642258206651,0.68192642,43189.0,43183.0,0.69472]
[1642258206953,0.87897813,43193.0,43185.0,0.32629187]
[1642258207156,0.87897813,43193.0,43186.0,0.69467]
[1642258207354,0.00013752,43192.0,43190.0,0.28957812]
[1642258207550,0.00013752,43192.0,43191.0,0.69459]
[1642258207753,0.0999,43194.0,43191.0,0.69459]
[1642258207956,0.0999,43194.0,43191.0,1.13024214]
[1642258208185,0.0999,43194.0,43192.0,1.61059959]
[1642258208186,0.00015471,43193.0,43192.0,1.61059959]
[1642258208387,0.579608,43200.0,43193.0,0.7]
[1642258208587,0.579608,43200.0,43194.0,0.69454]
[1642258208788,0.00010314,43199.0,43194.0,0.69454]
[1642258209187,0.579608,43200.0,43194.0,0.64994]
[1642258209188,8.595e-05,43198.0,43194.0,0.64994]
[1642258209586,6.876e-05,43197.0,43194.0,0.64994]
[1642258209788,0.57467676,43200.0,43196.0,0.33957159]
[1642258209988,0.67467676,43200.0,43197.0,0.73909]
[1642258210889,0.67467676,43200.0,43199.0,0.60059163]
[1642258211088,0.67467676,43200.0,43199.0,1.33965163]
[1642258211590,0.57467676,43200.0,43199.0,1.33965163]
[1642258211789,0.56967676,43200.0,43199.0,1.33965163]
[1642258212249,0.56967676,43200.0,43199.0,1.56965163]
[1642258212846,0.66967676,43200.0,43199.0,1.56965163]
[1642258213746,0.56967676,43200.0,43199.0,1.56965163]
[1642258214246,0.56967676,43200.0,43199.0,1.52495163]
[1642258214444,0.56967676,43200.0,43199.0,1.22270171]
[1642258214445,0.66967676,43200.0,43199.0,1.22270171]
[1642258214848,0.56967676,43200.0,43199.0,1.22270171]
[1642258215682,0.56967676,43200.0,43199.0,1.87552476]
[1642258216688,4.34106635,43200.0,43199.0,0.79013867]
[1642258216884,4.34106635,43200.0,43199.0,0.32683667]
[1642258216885,4.75625191,43200.0,43199.0,0.32683667]
[1642258217085,4.66755617,43200.0,43199.0,0.32683667]
[1642258217285,2.27316333,43199.0,43182.0,0.43869574]
[1642258217487,1.13255617,43200.0,43193.0,0.32945136]
[1642258217488,0.66967676,43200.0,43193.0,0.32945136]
[1642258217686,0.1,43199.0,43193.0,0.32945136]
[1642258218086,0.095,43199.0,43193.0,0.32945136]
[1642258218488,0.56967676,43200.0,43194.0,0.31187324]
[1642258218784,1.33386895,43198.0,43194.0,0.31187324]
[1642258218985,0.374996,43197.0,43194.0,0.31187324]
[1642258219189,0.374996,43197.0,43194.0,0.26727324]
[1642258219451,0.374996,43197.0,43188.0,1.9438498]
[1642258219452,0.0012354,43196.0,43182.0,0.00128597]
[1642258219651,0.00128432,43184.0,43172.0,2.24639574]
[1642258219852,0.0464,43191.0,43180.0,0.43869574]
[1642258220052,0.0464,43191.0,43180.0,0.00029223]
[1642258220349,0.0464,43191.0,43187.0,0.25019148]
[1642258220549,0.0464,43191.0,43188.0,0.69464]
[1642258220755,0.0464,43191.0,43188.0,0.69479471]
[1642258220950,0.56609289,43190.0,43189.0,0.00013752]
[1642258221154,0.66609289,43190.0,43189.0,0.69475752]
[1642258221351,0.71372172,43190.0,43189.0,0.69475752]
[1642258221549,1.08871772,43190.0,43189.0,0.69475752]
[1642258221952,2.32371772,43190.0,43189.0,0.69475752]
[1642258222553,2.32371772,43190.0,43189.0,0.92475752]
[1642258223287,0.50889052,43187.0,43166.0,0.55002702]
[1642258223483,0.374996,43183.0,43166.0,1.65552702]
[1642258223687,0.00129386,43176.0,43166.0,0.55002702]
[1642258223886,0.05922486,43176.0,43170.0,0.29126747]
[1642258224083,0.05922486,43176.0,43160.0,0.38776419]
[1642258224084,0.48062086,43176.0,43175.0,0.00030066]
[1642258224283,0.48062086,43176.0,43163.0,0.55002702]
[1642258224284,0.42268986,43176.0,43165.0,0.29703731]
[1642258224484,0.14769386,43176.0,43165.0,0.29703731]
[1642258224684,0.14769386,43176.0,43166.0,0.00015471]
[1642258224883,0.057925,43175.0,43166.0,0.00015471]
[1642258225084,0.0464,43174.0,43166.0,0.00015471]
[1642258225582,0.0464,43174.0,43169.0,0.2551905]
[1642258225786,0.601,43169.0,43167.0,0.69493]
[1642258226937,0.658934,43169.0,43167.0,0.69493]
[1642258227135,0.701,43169.0,43167.0,0.69493]
[1642258227736,1.3521,43169.0,43167.0,0.69493]
[1642258228241,2.23022861,43168.0,43167.0,0.69493]
[1642258228438,2.17268483,43168.0,43167.0,0.231297]
[1642258228640,0.52268483,43168.0,43167.0,0.23143452]
[1642258229238,0.58062583,43168.0,43167.0,0.18683452]
[1642258230037,1.81562583,43168.0,43167.0,0.18683452]
[1642258230238,0.973996,43167.0,43158.0,0.08736812]
[1642258230541,0.057942,43163.0,43159.0,0.00013752]
[1642258230787,0.374996,43160.0,43159.0,0.00013752]
[1642258230987,0.057942,43163.0,43159.0,0.00013752]
[1642258231188,0.415012,43160.0,43159.0,0.00013752]
[1642258231392,0.315012,43160.0,43159.0,0.00013752]
[1642258231590,0.4742044,43160.0,43159.0,0.00013752]
[1642258231787,0.4742044,43160.0,43159.0,0.4326773]
[1642258231988,0.415012,43160.0,43159.0,1.88013752]
[1642258232188,0.1,43160.0,43159.0,0.23013752]
[1642258232489,0.474996,43160.0,43159.0,0.92523752]
[1642258232788,1.2427674,43160.0,43159.0,1.20912435]
[1642258232991,1.3427674,43160.0,43159.0,0.92523752]
[1642258233288,1.2427674,43160.0,43159.0,0.92523752]
[1642258233488,1.3439696,43160.0,43159.0,0.92523752]
[1642258233690,0.4761982,43160.0,43159.0,0.6951]
[1642258233896,0.4761982,43160.0,43145.0,0.03551564]
[1642258233897,0.13816558,43155.0,43145.0,0.03551564]
[1642258234092,0.421396,43154.0,43145.0,0.03551564]
[1642258234290,0.00124053,43147.0,43142.0,0.63185321]
[1642258234738,0.00124053,43147.0,43140.0,0.42599682]
[1642258234940,0.0464,43146.0,43139.0,0.7808]
[1642258235139,0.0464,43146.0,43141.0,8.596e-05]
[1642258235541,0.00127294,43142.0,43137.0,0.00015472]
[1642258235742,0.057978,43140.0,43137.0,0.00015472]
[1642258235940,0.104378,43140.0,43137.0,0.00015472]
[1642258236141,0.00127294,43142.0,43137.0,0.00015472]
[1642258236341,0.1,43145.0,43137.0,0.00015472]
[1642258236741,0.19963787,43145.0,43137.0,0.00015472]
[1642258236942,0.00121196,43139.0,43138.0,0.69539]
[1642258237342,0.00121196,43139.0,43138.0,0.69552753]
[1642258238291,0.04761196,43139.0,43138.0,0.69552753]
[1642258238490,0.42260796,43139.0,43138.0,0.69552753]
[1642258238990,0.52260796,43139.0,43138.0,0.69552753]
[1642258239196,0.52260796,43139.0,43138.0,0.65072753]
[1642258239694,0.14761196,43139.0,43138.0,0.65072753]
[1642258240090,0.04761196,43139.0,43138.0,0.65072753]
[1642258240690,0.42260796,43139.0,43138.0,0.65072753]
[1642258240890,0.42260796,43139.0,43138.0,0.64572753]
[1642258241090,0.52260796,43139.0,43138.0,0.64572753]
[1642258241492,0.521396,43139.0,43138.0,0.64572753]
[1642258241692,0.0464,43139.0,43138.0,0.64572753]
[1642258241953,0.99409139,43147.0,43138.0,0.64572753]
[1642258241954,0.79327139,43147.0,43138.0,0.64572753]
[1642258242149,0.374996,43146.0,43143.0,0.24193203]
[1642258242351,0.69431128,43141.0,43139.0,0.00012034]
[1642258242548,0.374996,43140.0,43139.0,0.00012034]
[1642258243149,0.69431128,43142.0,43139.0,0.74535034]
[1642258243348,0.1,43140.0,43139.0,0.74535034]
[1642258243551,0.1,43140.0,43139.0,0.74523]
[1642258243552,0.374996,43140.0,43139.0,0.74523]
[1642258244048,0.474996,43140.0,43139.0,0.74523]
[1642258244250,0.474996,43140.0,43139.0,0.70053]
[1642258244453,0.474996,43140.0,43139.0,0.96464977]
[1642258244650,0.1,43140.0,43139.0,0.70053]
[1642258245150,0.10631454,43143.0,43139.0,0.70053]
[1642258245351,0.374996,43142.0,43139.0,0.70053]
[1642258245549,0.474996,43142.0,43140.0,0.00010315]
[1642258245785,0.374996,43141.0,43140.0,0.00010315]
[1642258245987,0.374996,43141.0,43140.0,0.69550315]
[1642258246184,0.474996,43141.0,43140.0,0.6954]
[1642258246584,0.1,43141.0,43140.0,0.6954]
[1642258246784,0.157975,43141.0,43140.0,0.6954]
[1642258247390,0.432971,43141.0,43140.0,0.6954]
[1642258247586,0.532971,43141.0,43140.0,0.6954]
[1642258247988,0.63760024,43141.0,43140.0,0.6954]
[1642258248188,0.53965973,43141.0,43140.0,0.6954]
[1642258248391,0.63174909,43141.0,43140.0,1.00924661]
[1642258248588,0.63174909,43141.0,43140.0,1.01924661]
[1642258248787,0.57377409,43141.0,43140.0,1.01924661]
[1642258248989,0.10668873,43141.0,43140.0,0.7054]
[1642258249451,0.38168473,43141.0,43140.0,0.6608]
[1642258249650,0.48168473,43141.0,43140.0,0.6608]
[1642258250051,0.48168473,43141.0,43140.0,0.6558]
[1642258250448,1.17599601,43141.0,43140.0,0.6558]
[1642258251349,0.44775274,43141.0,43140.0,0.6558]
[1642258251749,0.44168473,43141.0,43140.0,0.6558]
[1642258251952,0.69431128,43142.0,43140.0,0.6558]
[1642258252156,0.69431128,43142.0,43141.0,0.85]
[1642258252358,0.69431128,43143.0,43141.0,1.59007596]
[1642258252749,0.69431128,43143.0,43142.0,2.29790331]
[1642258252951,0.69431128,43143.0,43142.0,1.08455211]
[1642258253192,0.69431128,43143.0,43142.0,0.74504877]
[1642258253395,1.235,43147.0,43142.0,0.74504877]
[1642258253593,0.00841116,43148.0,43142.0,0.74504877]
[1642258254190,0.69431128,43145.0,43142.0,0.74504877]
[1642258254392,0.69431128,43145.0,43142.0,0.70034877]
[1642258254592,0.85228128,43145.0,43142.0,0.70034877]
[1642258254991,0.375309,43143.0,43142.0,0.70034877]
[1642258255192,0.79431128,43145.0,43142.0,0.70034877]
[1642258255395,0.1,43143.0,43142.0,1.03133484]
[1642258255596,0.79431128,43145.0,43142.0,1.03133484]
[1642258255795,0.1,43145.0,43142.0,1.03133484]
[1642258256194,0.1,43145.0,43142.0,1.08929563]
[1642258256395,0.1,43145.0,43142.0,1.03133484]
[1642258256594,0.79431128,43146.0,43142.0,1.04133484]
[1642258257042,0.79431128,43146.0,43143.0,0.24438986]
[1642258257237,0.79431128,43146.0,43144.0,0.78958]
[1642258258237,0.69431128,43146.0,43144.0,0.78958]
[1642258259240,0.69431128,43146.0,43145.0,0.37659413]
[1642258259442,0.69431128,43147.0,43145.0,1.16615413]
[1642258259640,6.877e-05,43146.0,43145.0,1.16615413]
[1642258261993,6.877e-05,43146.0,43145.0,1.99970048]
[1642258262393,6.877e-05,43146.0,43145.0,1.54146313]
[1642258262594,6.877e-05,43146.0,43145.0,3.84146313]
[1642258263295,6.877e-05,43146.0,43145.0,3.74146313]
[1642258263495,0.69431128,43154.0,43146.0,2.1]
[1642258263700,0.69431128,43154.0,43150.0,0.05794294]
[1642258263897,0.00012033,43153.0,43151.0,0.847403]
[1642258264296,0.00010314,43152.0,43151.0,1.21015555]
[1642258264548,0.00010314,43152.0,43151.0,2.19868365]
[1642258264747,0.00010314,43152.0,43151.0,2.6110466]
[1642258265450,0.00010314,43152.0,43151.0,2.89775616]
[1642258266747,0.00010314,43152.0,43151.0,2.79275616]
[1642258269390,0.00010314,43152.0,43151.0,3.12326516]
[1642258271392,0.00010314,43152.0,43151.0,4.47326516]
[1642258271942,0.00010314,43152.0,43151.0,4.57326516]
[1642258272145,1.44464004,43163.0,43152.0,1.95]
[1642258272339,1.44464004,43163.0,43159.0,0.05792891]
[1642258272541,1.34464004,43163.0,43160.0,1.61976637]
[1642258272741,0.599,43167.0,43162.0,0.91550319]
[1642258272939,0.599,43167.0,43163.0,0.93907]
[1642258273145,6.876e-05,43166.0,43163.0,0.93907]
[1642258273542,2.04471719,43169.0,43166.0,0.05792317]
[1642258273741,2.04471719,43169.0,43167.0,1.61412896]
[1642258274140,1.27281719,43169.0,43167.0,1.61412896]
[1642258274341,1.27281719,43169.0,43168.0,1.930509]
[1642258274543,0.009285,43182.0,43169.0,1.45]
[1642258274741,0.009285,43182.0,43172.0,0.05791036]
[1642258274943,0.009285,43182.0,43173.0,1.2280451]
[1642258274944,0.00015471,43175.0,43173.0,1.2280451]
[1642258275342,0.00013752,43174.0,43173.0,2.8780451]
[1642258275542,0.00013752,43174.0,43173.0,3.2532351]
[1642258275794,0.00013752,43174.0,43173.0,3.3690581]
[1642258275989,0.001,43186.0,43177.0,0.057907]
[1642258276188,0.001,43186.0,43177.0,0.07971]
[1642258276390,0.00013752,43182.0,43178.0,0.93883]
[1642258276586,0.00013752,43182.0,43179.0,0.26649248]
[1642258276788,0.00012033,43181.0,43180.0,0.9388]
[1642258276987,0.00012033,43181.0,43180.0,1.83248665]
[1642258277386,0.00012033,43181.0,43180.0,2.98248665]
[1642258277587,0.00012033,43181.0,43180.0,3.35767665]
[1642258277786,0.00012033,43181.0,43180.0,2.20767665]
[1642258277988,0.00233191,43185.0,43181.0,1.046131]
[1642258278290,0.00233191,43185.0,43182.0,0.93876]
[1642258278587,0.00233191,43185.0,43182.0,0.99666112]
[1642258279443,0.00233191,43185.0,43182.0,0.95196112]
[1642258279944,0.00233191,43185.0,43183.0,0.37519]
[1642258280144,0.00233191,43185.0,43184.0,3.34897619]
[1642258280344,0.00233191,43185.0,43184.0,3.284806]
[1642258280546,0.00240067,43185.0,43184.0,3.284806]
[1642258280745,0.00240067,43185.0,43184.0,2.93873]
[1642258281345,0.00240067,43185.0,43184.0,0.93873]
[1642258282648,1.07117216,43189.0,43184.0,0.93873]
[1642258282848,1.07117216,43189.0,43186.0,0.34417303]
[1642258283048,1.07117216,43189.0,43187.0,1.2671853]
[1642258283304,0.1,43189.0,43187.0,1.2671853]
[1642258283504,0.1,43189.0,43187.0,0.93868]
[1642258283698,0.001,43191.0,43187.0,0.93868]
[1642258284002,6.876e-05,43189.0,43187.0,0.93868]
[1642258284399,6.876e-05,43189.0,43187.0,1.28842588]
[1642258284600,6.876e-05,43189.0,43187.0,1.51842588]
[1642258285201,6.876e-05,43189.0,43187.0,1.79789649]
[1642258285400,6.876e-05,43189.0,43187.0,1.51842588]
[1642258286202,6.876e-05,43189.0,43187.0,1.12358]
[1642258286503,6.876e-05,43189.0,43187.0,1.42662638]
[1642258287145,6.876e-05,43189.0,43188.0,1.00248305]
[1642258287341,6.876e-05,43189.0,43188.0,1.98625305]
[1642258288141,6.876e-05,43189.0,43188.0,1.43625305]
[1642258289544,6.876e-05,43189.0,43188.0,1.39165305]
[1642258291013,0.02397676,43191.0,43188.0,1.39165305]
[1642258292816,0.02397676,43191.0,43188.0,0.98377]
[1642258294439,0.02397676,43191.0,43188.0,0.93887]
[1642258294643,0.02397676,43191.0,43188.0,1.26847007]
[1642258294840,0.02397676,43191.0,43188.0,0.93887]
[1642258296344,0.12397676,43191.0,43188.0,0.93887]
[1642258296544,1.1227728,43189.0,43188.0,0.93887]
[1642258296850,2.99602303,43189.0,43188.0,0.93887]
[1642258297045,2.99286615,43189.0,43188.0,0.93887]
[1642258297445,2.34286615,43189.0,43188.0,0.93887]
[1642258297842,2.43264615,43189.0,43188.0,0.83907]
[1642258298042,4.1276938,43189.0,43187.0,0.23]
[1642258298316,0.00123262,43175.0,43167.0,0.43545044]
[1642258298515,0.00123262,43175.0,43162.0,0.43166662]
[1642258298719,0.00123262,43175.0,43168.0,0.00036099]
[1642258298916,0.38309074,43176.0,43170.0,0.27804016]
[1642258299114,0.48309074,43176.0,43170.0,0.27804016]
[1642258299315,0.057931,43174.0,43171.0,0.00030942]
[1642258299515,0.057931,43174.0,43161.0,1.250755]
[1642258299716,0.057931,43174.0,43168.0,0.34333573]
[1642258299717,0.38516524,43173.0,43168.0,0.34333573]
[1642258300115,0.48516524,43173.0,43168.0,0.34333573]
[1642258300315,0.40001212,43172.0,43162.0,1.9977421]
[1642258300515,0.057939,43171.0,43162.0,0.45754074]
[1642258300719,0.057939,43171.0,43163.0,0.00013752]
[1642258300916,0.44134424,43171.0,43163.0,0.00013752]
[1642258301117,0.157939,43171.0,43163.0,0.00013752]
[1642258301317,0.157939,43171.0,43162.0,0.45252355]
[1642258301318,0.53320494,43171.0,43162.0,0.45252355]
[1642258301520,0.00012033,43170.0,43165.0,0.28591032]
[1642258301716,0.057939,43168.0,43165.0,0.28591032]
[1642258301945,0.00010314,43169.0,43165.0,0.28591032]
[1642258302143,6.876e-05,43167.0,43165.0,0.28591032]
[1642258302342,0.37539256,43170.0,43165.0,0.28591032]
[1642258302343,8.595e-05,43168.0,43165.0,0.28591032]
[1642258302743,6.876e-05,43167.0,43165.0,0.28591032]
[1642258303143,0.057939,43168.0,43165.0,0.28591032]
[1642258303344,0.00010314,43169.0,43165.0,0.28591032]
[1642258303545,6.876e-05,43167.0,43165.0,0.28591032]
[1642258303844,0.42360633,43175.0,43165.0,0.28591032]
[1642258303845,0.00020628,43175.0,43165.0,0.28591032]
[1642258304050,0.10020628,43175.0,43165.0,0.28591032]
[1642258304246,0.00018909,43174.0,43166.0,0.05792944]
[1642258304447,0.00018909,43174.0,43166.0,0.01332944]
[1642258304746,0.0001719,43173.0,43169.0,0.29855042]
[1642258305146,0.00015471,43172.0,43169.0,0.29855042]
[1642258305545,0.00013752,43171.0,43169.0,0.29855042]
[1642258305997,0.057931,43174.0,43169.0,0.29855042]
[1642258306194,0.00020628,43175.0,43169.0,0.29855042]
[1642258306395,0.0001719,43173.0,43169.0,0.29855042]
[1642258306598,0.00018909,43174.0,43169.0,0.29855042]
[1642258306794,0.00015471,43172.0,43169.0,0.29855042]
[1642258306995,0.0001719,43173.0,43172.0,1.25626249]
[1642258307199,0.1,43177.0,43172.0,1.6561111]
[1642258307397,0.1,43177.0,43172.0,1.25626249]
[1642258307595,0.00020628,43175.0,43172.0,1.25626249]
[1642258307794,0.00020628,43175.0,43172.0,0.25626249]
[1642258307997,0.1,43177.0,43172.0,0.25626249]
[1642258307998,0.00018909,43174.0,43172.0,0.25626249]
[1642258308397,0.0001719,43173.0,43172.0,0.25626249]
[1642258308798,0.00027504,43173.0,43172.0,0.25626249]
[1642258309201,0.00027504,43173.0,43172.0,0.95115249]
[1642258309454,0.00027504,43173.0,43172.0,0.65029]
[1642258310452,0.05820704,43173.0,43172.0,0.65029]
[1642258310653,0.05820704,43173.0,43172.0,0.66029]
[1642258311653,0.00027504,43173.0,43172.0,0.66029]
[1642258312055,0.00027504,43173.0,43172.0,0.99494474]
[1642258313297,0.00027504,43173.0,43172.0,0.66029]
[1642258314295,0.00027504,43173.0,43172.0,0.90751814]
[1642258314499,0.00027504,43173.0,43172.0,0.86281814]
[1642258315198,0.00027504,43173.0,43172.0,0.61559]
[1642258315599,0.00027504,43173.0,43172.0,0.60559]
[1642258317061,0.37668274,43173.0,43172.0,0.60559]
[1642258317457,0.47668274,43173.0,43172.0,0.60559]
[1642258319258,1.7172998,43173.0,43172.0,0.60559]
[1642258319458,1.71168274,43173.0,43172.0,0.60559]
[1642258319662,1.82379235,43173.0,43172.0,0.56089]
[1642258320157,1.71168274,43173.0,43172.0,0.56089]
[1642258320357,1.71168274,43173.0,43172.0,0.55089]
[1642258320793,0.47668274,43173.0,43172.0,0.55089]
[1642258321392,1.71168274,43173.0,43172.0,0.55089]
[1642258321792,1.71755858,43173.0,43172.0,0.55089]
[1642258321993,1.71168274,43173.0,43172.0,0.50254496]
[1642258322393,1.71779694,43173.0,43172.0,0.50254496]
[1642258322593,1.71046504,43173.0,43172.0,0.50254496]
[1642258322795,1.70006866,43173.0,43172.0,0.50254496]
[1642258322994,1.70006866,43173.0,43172.0,0.50266529]
[1642258323796,1.69322794,43173.0,43172.0,0.50266529]
[1642258324645,1.69322794,43173.0,43172.0,0.45806529]
[1642258325848,1.69322794,43173.0,43172.0,0.42176462]
[1642258329294,1.69322794,43173.0,43172.0,0.41676462]
[1642258329495,1.69197402,43173.0,43172.0,0.41676462]
[1642258329697,1.69197402,43173.0,43172.0,0.37186462]
[1642258330896,1.7008866,43173.0,43172.0,0.37186462]
[1642258333147,1.69322414,43173.0,43172.0,0.36686462]
[1642258333350,1.6985735,43173.0,43172.0,0.36686462]
[1642258333652,0.4635735,43173.0,43172.0,0.36686462]
[1642258333850,0.45697402,43173.0,43172.0,1.16686462]
[1642258334048,0.1,43173.0,43172.0,0.36686462]
[1642258334449,0.057929,43175.0,43172.0,0.36686462]
[1642258334651,0.057929,43175.0,43172.0,0.64163322]
[1642258334851,0.057929,43175.0,43173.0,0.00010314]
[1642258335054,0.057929,43175.0,43174.0,0.30604559]
[1642258335251,0.057929,43175.0,43173.0,0.00010314]
[1642258335452,0.057929,43175.0,43174.0,8.595e-05]
[1642258335694,0.057929,43175.0,43173.0,0.00010314]
[1642258336296,0.057929,43175.0,43174.0,0.32450738]
[1642258336697,0.1,43180.0,43174.0,1.12459333]
[1642258336898,0.4154,43184.0,43174.0,1.12459333]
[1642258337100,0.4154,43184.0,43175.0,6.876e-05]
[1642258337298,0.20637363,43187.0,43175.0,6.876e-05]
[1642258337299,6.876e-05,43183.0,43175.0,6.876e-05]
[1642258337704,0.00012033,43186.0,43184.0,0.32658045]
[1642258337899,0.433106,43185.0,43184.0,0.32658045]
[1642258338102,0.37529314,43185.0,43184.0,0.32658045]
[1642258338298,0.00010314,43185.0,43184.0,0.32658045]
[1642258339100,0.00129371,43191.0,43185.0,2.25]
[1642258339302,0.510283,43192.0,43185.0,2.25]
[1642258339303,0.510283,43192.0,43189.0,0.00121592]
[1642258339548,0.510283,43192.0,43184.0,0.31238637]
[1642258339549,8.595e-05,43190.0,43184.0,0.31238637]
[1642258339747,8.595e-05,43190.0,43188.0,0.00123059]
[1642258339947,6.876e-05,43189.0,43187.0,0.057899]
[1642258340151,6.876e-05,43189.0,43188.0,1.42428523]
[1642258340353,0.00010314,43191.0,43188.0,2.11892523]
[1642258340549,6.876e-05,43189.0,43188.0,2.11892523]
[1642258340749,0.00010314,43191.0,43188.0,2.11892523]
[1642258340947,6.876e-05,43189.0,43188.0,2.11892523]
[1642258341150,0.00010314,43191.0,43188.0,2.11892523]
[1642258341349,0.010283,43192.0,43188.0,2.11892523]
[1642258341350,6.876e-05,43189.0,43188.0,2.11892523]
[1642258341551,0.00010314,43191.0,43188.0,2.11892523]
[1642258341753,6.876e-05,43189.0,43188.0,2.11892523]
[1642258341954,0.00010314,43191.0,43188.0,2.11892523]
[1642258342151,6.876e-05,43189.0,43188.0,2.11892523]
[1642258342355,0.00010314,43191.0,43188.0,2.11892523]
[1642258342555,6.876e-05,43189.0,43188.0,2.11892523]
[1642258342753,0.00010314,43191.0,43188.0,3.06892523]
[1642258342957,6.876e-05,43189.0,43188.0,3.06892523]
[1642258343205,0.00010314,43191.0,43188.0,3.06892523]
[1642258343398,0.010283,43192.0,43188.0,3.16892523]
[1642258343399,6.876e-05,43189.0,43188.0,3.16892523]
[1642258343598,0.0005336,43193.0,43189.0,1.933079]
[1642258343800,0.0005336,43193.0,43190.0,0.69461]
[1642258344000,0.0005336,43193.0,43191.0,0.364167]
[1642258344200,0.0005336,43193.0,43192.0,0.99074308]
[1642258344601,0.00060236,43193.0,43192.0,0.94614308]
[1642258345606,0.00060236,43193.0,43192.0,1.54614308]
[1642258346403,0.00060236,43193.0,43192.0,1.77614308]
[1642258346603,0.6511,43199.0,43192.0,1.77614308]
[1642258346604,0.6511,43199.0,43193.0,2.52519]
[1642258346803,0.6511,43199.0,43195.0,0.11576904]
[1642258347051,0.6511,43199.0,43196.0,0.69451]